bitfinex/quotes_ETHUSD_20250504
["timestamp","ask_amount","ask_price","bid_price","bid_amount"]
[1746358402381,5.44562376,1836.4,1836.2,18.14636162]
[1746358402719,5.44573326,1836.3,1836.2,18.14636162]
[1746358403017,5.44573326,1836.3,1836.2,3.64636162]
[1746358403321,5.44573326,1836.3,1836.2,18.14636162]
[1746358404517,5.84992046,1836.3,1836.2,18.14636162]
[1746358406518,5.84992046,1836.3,1836.2,3.64636162]
[1746358406823,5.84992046,1836.3,1836.2,18.14636162]
[1746358409028,0.4041872,1836.3,1836.2,18.14636162]
[1746358409320,5.44573326,1836.3,1836.2,18.14636162]
[1746358410026,5.44573326,1836.3,1836.2,3.64636162]
[1746358410324,5.44573326,1836.3,1836.2,18.14636162]
[1746358413022,5.44573326,1836.3,1836.2,14.5]
[1746358413322,5.44573326,1836.3,1836.0,0.7708]
[1746358413524,5.44573326,1836.3,1836.1,0.05445719]
[1746358413899,5.85995042,1836.3,1836.2,14.5]
[1746358414327,0.41421716,1836.3,1836.2,14.5]
[1746358414482,7.12507106,1836.6,1836.2,16.7025]
[1746358414681,3.0,1836.5,1836.2,16.7025]
[1746358414907,12.57019974,1836.6,1836.2,16.7025]
[1746358414908,7.12507106,1836.6,1836.2,16.7025]
[1746358415110,12.57018229,1836.6,1836.2,16.7025]
[1746358415409,5.44515182,1836.5,1836.3,1.67025]
[1746358418127,5.44515182,1836.5,1836.2,2.2025]
[1746358418332,5.44515182,1836.5,1836.3,14.5]
[1746358423060,5.44543672,1836.4,1836.3,14.5]
[1746358423351,5.44587218,1836.3,1836.0,4.39886162]
[1746358423855,5.44587218,1836.3,1836.1,14.5]
[1746358424059,5.44587218,1836.3,1836.1,16.38988616]
[1746358425166,5.85328908,1836.3,1836.1,16.38988616]
[1746358426964,5.44587218,1836.3,1836.1,16.38988616]
[1746358427169,5.44554809,1836.4,1836.1,16.38988616]
[1746358427658,5.44554809,1836.4,1836.2,0.05445449]
[1746358428247,5.44554809,1836.4,1836.3,14.5]
[1746358431674,5.44554809,1836.4,1836.0,9.84541924]
[1746358431878,5.44554809,1836.4,1836.0,11.3746321]
[1746358432174,5.44554809,1836.4,1836.1,14.55445693]
[1746358432377,5.44554809,1836.4,1836.1,14.5]
[1746358432672,5.4452682,1836.5,1836.1,19.94617923]
[1746358432847,5.4452682,1836.5,1836.2,0.7704]
[1746358433179,5.44546208,1836.4,1836.2,0.7704]
[1746358433579,5.44546208,1836.4,1836.3,14.5]
[1746358434678,5.44530609,1836.5,1836.3,14.5]
[1746358434848,5.44543672,1836.4,1836.3,14.5]
[1746358437275,5.44530609,1836.5,1836.3,14.5]
[1746358437978,5.44543672,1836.4,1836.3,14.5]
[1746358442401,5.44543672,1836.4,1836.2,3.64636162]
[1746358442979,5.44543672,1836.4,1836.2,18.14636162]
[1746358444999,10.8911147,1836.4,1836.2,18.14636162]
[1746358445200,5.44543672,1836.4,1836.2,18.14636162]
[1746358445904,5.44543672,1836.4,1836.2,3.64636162]
[1746358446403,5.44543672,1836.4,1836.3,14.5]
[1746358448701,5.44525214,1836.5,1836.3,14.5]
[1746358448901,1.6800901,1836.6,1836.4,0.8056]
[1746358449904,1.6800901,1836.6,1836.5,14.5]
[1746358451026,7.12493383,1836.6,1836.5,14.5]
[1746358452729,1.6800901,1836.6,1836.5,14.5]
[1746358460636,7.12493383,1836.6,1836.5,14.5]
[1746358469700,5.44539585,1836.5,1836.3,3.64636162]
[1746358469901,5.44543672,1836.4,1836.3,3.64636162]
[1746358470112,5.44543672,1836.4,1836.3,18.14636162]
[1746358473239,6.53449462,1836.4,1836.3,3.64636162]
[1746358473429,6.53449462,1836.4,1835.8,4.77555037]
[1746358473430,5.44602984,1836.2,1836.1,3.64636162]
[1746358473809,5.44602984,1836.2,1836.1,18.14636162]
[1746358476709,5.44602984,1836.2,1836.1,3.64636162]
[1746358477246,5.44602984,1836.2,1836.1,18.14636162]
[1746358478237,5.44602984,1836.2,1836.1,14.5]
[1746358480357,5.44602984,1836.2,1835.9,3.64636162]
[1746358480556,5.44602984,1836.2,1835.9,4.6369449]
[1746358481554,5.44645618,1836.1,1835.9,3.64636162]
[1746358484055,5.44662309,1836.0,1835.9,3.64636162]
[1746358484453,5.44650973,1836.1,1835.9,3.64636162]
[1746358485058,5.44655751,1836.1,1835.8,4.45866162]
[1746358485260,5.44655751,1836.1,1835.8,5.45472456]
[1746358485771,5.44619045,1836.2,1835.9,0.8217]
[1746358486445,10.53673308,1836.3,1835.9,6.26848334]
[1746358486446,10.53676767,1836.3,1835.9,6.26848334]
[1746358486645,10.53676767,1836.3,1836.0,0.8217]
[1746358486950,15.98278774,1836.3,1836.0,0.8217]
[1746358487950,5.44604856,1836.2,1836.0,0.8217]
[1746358488747,5.44604856,1836.2,1836.1,14.5]
[1746358490980,15.98270915,1836.3,1836.1,14.5]
[1746358491584,5.44602984,1836.2,1836.1,14.5]
[1746358491781,5.0908572,1836.3,1836.1,14.5]
[1746358491982,1.6800901,1836.5,1836.3,5.44568208]
[1746358492155,5.44476676,1836.7,1836.4,0.7774]
[1746358492485,10.88958417,1836.7,1836.4,0.7774]
[1746358492687,5.44488245,1836.6,1836.4,0.7774]
[1746358493682,5.44514021,1836.5,1836.1,20.64878127]
[1746358493891,5.44514021,1836.5,1836.2,2.84227813]
[1746358495584,5.44566509,1836.4,1836.2,2.06487813]
[1746358495786,5.44566509,1836.4,1836.1,15.20263561]
[1746358495787,5.44585433,1836.3,1836.1,14.5]
[1746358495988,5.44585433,1836.3,1836.2,3.64636162]
[1746358497088,5.84626761,1836.3,1836.2,3.64636162]
[1746358497259,5.95936761,1836.3,1836.2,3.64636162]
[1746358497458,10.09987088,1836.3,1836.2,3.64636162]
[1746358499594,5.44645121,1836.1,1835.9,18.14636162]
[1746358502328,5.44662309,1836.0,1835.9,18.14636162]
[1746358504138,5.44662309,1836.0,1835.9,14.5]
[1746358507025,5.44652393,1836.1,1835.9,14.5]
[1746358508131,10.89309704,1836.1,1835.9,14.5]
[1746358508540,5.44662309,1836.0,1835.9,14.5]
[1746358509831,5.44651761,1836.1,1835.9,14.5]
[1746358510427,10.8931049,1836.1,1835.9,14.5]
[1746358510612,5.44651761,1836.1,1835.9,14.5]
[1746358511344,5.44662309,1836.0,1835.9,14.5]
[1746358512433,5.44650726,1836.1,1835.9,14.5]
[1746358517048,5.44623137,1836.2,1835.9,14.5]
[1746358517346,8.44623137,1836.2,1836.0,0.7827]
[1746358517948,8.44623137,1836.2,1836.1,14.5]
[1746358525153,5.44691976,1835.9,1835.8,4.45446162]
[1746358525318,5.44679985,1836.0,1835.8,4.45446162]
[1746358525518,5.44679985,1836.0,1835.9,14.5]
[1746358526453,5.44691976,1835.9,1835.8,3.64636162]
[1746358527018,6.53629172,1835.9,1835.8,3.64636162]
[1746358527922,5.44691976,1835.9,1835.8,6.5644295]
[1746358528453,10.12683375,1836.0,1835.8,6.5644295]
[1746358528667,1.6800901,1836.0,1835.9,0.8081]
[1746358529239,1.6800901,1836.0,1835.9,15.3081]
[1746358531553,1.99816161,1836.0,1835.9,15.3081]
[1746358531758,0.31807151,1836.0,1835.9,22.61766592]
[1746358531928,7.12505473,1836.6,1836.3,0.7753]
[1746358532258,0.28637503,1836.5,1836.3,0.7753]
[1746358532953,0.28637503,1836.5,1836.4,14.5]
[1746358533462,5.84461524,1836.5,1836.4,14.5]
[1746358534455,5.84461524,1836.5,1836.0,5.44647564]
[1746358534456,5.44602984,1836.2,1836.0,0.7744]
[1746358534763,0.28593316,1836.1,1835.9,3.68924337]
[1746358534962,5.73249129,1836.1,1836.0,14.5]
[1746358535632,5.61696515,1836.1,1836.0,14.5]
[1746358537969,0.26327861,1836.1,1836.0,14.5]
[1746358540055,0.26327861,1836.1,1836.0,15.276]
[1746358541083,0.26327861,1836.1,1836.0,16.8036]
[1746358541638,7.53134401,1836.3,1836.0,16.8036]
[1746358541839,0.26078363,1836.1,1836.0,16.8036]
[1746358542165,0.26078363,1836.1,1835.7,3.65692293]
[1746358542350,5.44721647,1835.8,1835.7,3.65692293]
[1746358542551,0.2601856,1835.8,1835.6,0.776]
[1746358542728,5.44709968,1835.9,1835.7,14.5]
[1746358542935,0.2601856,1835.8,1835.7,16.0276]
[1746358543244,5.44709968,1835.9,1835.7,16.0276]
[1746358543443,0.2601856,1835.8,1835.7,16.0276]
[1746358543646,5.44709968,1835.9,1835.7,16.0276]
[1746358543868,0.2601856,1835.8,1835.7,16.0276]
[1746358544238,5.44685766,1836.0,1835.7,16.0276]
[1746358544438,5.44685766,1836.0,1835.8,1.60276]
[1746358544769,5.44685766,1836.0,1835.6,0.776]
[1746358545184,10.89375966,1836.0,1835.7,14.5]
[1746358545494,5.44695847,1835.9,1835.7,14.5]
[1746358545697,8.44677315,1836.0,1835.7,14.5]
[1746358545991,8.44662359,1836.0,1835.7,14.5]
[1746358546213,5.44797187,1835.6,1835.4,5.55155037]
[1746358546556,5.4476435,1835.7,1835.5,14.5]
[1746358546557,5.44763394,1835.7,1835.5,14.5]
[1746358546793,0.1131,1836.1,1835.6,4.43705836]
[1746358546997,5.44673586,1836.0,1835.6,9.9392942]
[1746358547298,5.44673586,1836.0,1835.7,0.44370584]
[1746358549460,5.44692388,1835.9,1835.7,0.44370584]
[1746358549661,5.44680826,1836.0,1835.7,0.44370584]
[1746358550501,5.44680826,1836.0,1835.8,14.5]
[1746358551366,5.44691976,1835.9,1835.8,14.5]
[1746358552175,5.44680826,1836.0,1835.8,16.36047642]
[1746358553813,5.4465007,1836.1,1835.9,0.8153]
[1746358554167,0.25760644,1836.0,1835.9,0.8153]
[1746358554403,0.25760644,1836.0,1835.9,15.3153]
[1746358557705,0.25760644,1836.0,1835.9,0.8153]
[1746358558108,0.25760644,1836.0,1835.9,15.3153]
[1746358558818,0.25760644,1836.0,1835.9,16.84683]
[1746358558980,5.44621624,1836.2,1835.9,16.84683]
[1746358559173,0.25689151,1836.1,1835.9,16.84683]
[1746358559884,0.25689151,1836.1,1836.0,5.50108717]
[1746358560090,0.25689151,1836.1,1835.9,16.84683]
[1746358560290,5.44604647,1836.2,1836.0,1.684683]
[1746358561416,5.44591509,1836.3,1836.0,1.684683]
[1746358561712,5.44591509,1836.3,1836.0,1.73914124]
[1746358561873,5.44591509,1836.3,1836.0,1.684683]
[1746358562816,5.44603273,1836.2,1836.0,1.684683]
[1746358563588,5.44603273,1836.2,1835.9,6.00788836]
[1746358563945,5.44603273,1836.2,1836.0,14.5]
[1746358564818,5.44592334,1836.3,1836.0,14.5]
[1746358565033,5.44592334,1836.3,1836.1,0.7717]
[1746358565197,5.44546382,1836.4,1836.1,0.7717]
[1746358565530,5.44574002,1836.3,1836.1,1.39353104]
[1746358565733,5.44574002,1836.3,1836.2,14.5]
[1746358569463,5.70637767,1836.3,1836.2,14.5]
[1746358571858,0.26063765,1836.3,1836.2,14.5]
[1746358572179,0.26063765,1836.3,1836.2,16.8440531]
[1746358572380,5.44533312,1836.5,1836.2,16.8440531]
[1746358572580,0.26164126,1836.4,1836.2,16.8440531]
[1746358574691,0.26164126,1836.4,1836.2,22.28997728]
[1746358574882,5.44500664,1836.6,1836.2,22.28997728]
[1746358575057,5.44500664,1836.6,1836.3,2.2834487]
[1746358575385,8.85490217,1836.7,1836.4,0.8011]
[1746358575386,5.44472507,1836.7,1836.4,0.8011]
[1746358575774,5.44472507,1836.7,1836.5,14.5]
[1746358580757,5.44442233,1836.8,1836.5,14.5]
[1746358582083,8.44411739,1836.9,1836.6,0.05444671]
[1746358582282,5.55694748,1837.0,1836.6,2.86108968]
[1746358582479,5.55694748,1837.0,1836.6,0.86114671]
[1746358582659,5.55694748,1837.0,1836.7,14.5]
[1746358583281,8.44351886,1837.1,1836.7,19.94452046]
[1746358583282,5.44351886,1837.1,1836.7,19.94452046]
[1746358583590,5.44305424,1837.3,1837.0,0.8067]
[1746358583763,5.44305424,1837.3,1837.0,0.8611308]
[1746358583959,5.44265861,1837.4,1837.0,0.8067]
[1746358584175,5.44265861,1837.4,1837.0,0.86112865]
[1746358584383,5.44265861,1837.4,1837.1,14.5]
[1746358584578,0.24081377,1837.3,1837.2,1.45]
[1746358584997,5.44265861,1837.4,1837.2,1.45]
[1746358585308,0.24081377,1837.3,1837.2,1.45]
[1746358585465,5.68358305,1837.3,1837.2,1.45]
[1746358585666,5.68358305,1837.3,1837.1,14.5]
[1746358587403,0.24081377,1837.3,1837.1,14.5]
[1746358587765,5.4426267,1837.4,1837.1,14.5]
[1746358588301,0.24081377,1837.3,1837.1,14.5]
[1746358588671,5.4426267,1837.4,1837.1,14.5]
[1746358588871,0.24081377,1837.3,1837.2,1.45]
[1746358589072,8.85103981,1837.5,1837.2,1.45]
[1746358589272,0.24081377,1837.3,1837.1,0.05442538]
[1746358589488,8.85103981,1837.5,1837.1,5.49778323]
[1746358589781,0.24157644,1837.2,1837.1,5.44335773]
[1746358590114,8.85103981,1837.5,1837.1,5.44335773]
[1746358590313,0.24157644,1837.2,1837.1,6.21725773]
[1746358590523,8.44231122,1837.5,1837.1,7.38334502]
[1746358590524,5.44231122,1837.5,1837.1,7.38334502]
[1746358590727,0.24157644,1837.2,1837.1,1.93998729]
[1746358590930,0.1131,1837.4,1836.9,0.7739]
[1746358591131,5.68516592,1837.2,1836.9,0.7739]
[1746358591419,5.44411522,1836.9,1836.7,0.7739]
[1746358591712,0.24056717,1836.8,1836.6,3.66105836]
[1746358592175,5.44414258,1836.9,1836.6,3.66105836]
[1746358592802,0.24014992,1836.8,1836.6,3.66105836]
[1746358593109,5.44426473,1836.8,1836.6,3.66105836]
[1746358593315,0.23981217,1836.7,1836.6,3.66105836]
[1746358594517,5.68435945,1836.7,1836.6,3.66105836]
[1746358594702,0.23981217,1836.7,1836.6,3.66105836]
[1746358594902,0.23981217,1836.7,1836.6,4.0271642]
[1746358595906,5.68435945,1836.7,1836.6,4.0271642]
[1746358596718,0.23981217,1836.7,1836.6,4.0271642]
[1746358597310,0.23981217,1836.7,1836.6,0.36610584]
[1746358597517,0.23981217,1836.7,1836.3,10.78235744]
[1746358598721,5.68456434,1836.7,1836.3,10.78235744]
[1746358599306,5.6844831,1836.7,1836.3,0.8148]
[1746358599525,5.4450803,1836.6,1836.3,0.8148]
[1746358600012,0.23880157,1836.5,1836.3,0.8148]
[1746358600921,0.23880157,1836.5,1836.1,15.01240583]
[1746358601128,0.23880157,1836.5,1836.2,1.50124058]
[1746358601494,5.44555863,1836.4,1836.2,1.50124058]
[1746358601694,0.2381257,1836.3,1836.2,1.50124058]
[1746358601917,5.44530817,1836.5,1836.2,1.50124058]
[1746358602123,0.23664234,1836.4,1836.2,1.50124058]
[1746358602504,5.68209866,1836.4,1836.2,1.50124058]
[1746358602727,5.68209866,1836.4,1836.1,5.0442894]
[1746358603029,5.44574865,1836.3,1836.1,4.2828894]
[1746358603338,0.23546253,1836.2,1836.1,4.2828894]
[1746358603524,5.68149237,1836.2,1836.1,4.2828894]
[1746358603851,5.68149237,1836.2,1836.1,3.66105836]
[1746358605129,5.68149237,1836.2,1835.9,3.66105836]
[1746358605130,5.44632934,1836.1,1835.9,3.66105836]
[1746358605490,0.23455865,1836.0,1835.9,3.66105836]
[1746358607533,5.79428174,1836.0,1835.9,3.66105836]
[1746358608412,5.79428174,1836.0,1835.9,18.16105836]
[1746358608613,5.79428174,1836.0,1835.9,14.5]
[1746358611548,5.79428174,1836.0,1835.5,8.94545836]
[1746358611549,5.44728192,1835.8,1835.5,8.94545836]
[1746358611709,5.44728192,1835.8,1835.6,0.89454584]
[1746358611915,0.22947131,1835.7,1835.6,0.89454584]
[1746358612108,11.00679577,1836.0,1835.6,15.39454584]
[1746358612346,5.67707569,1835.9,1835.6,15.39454584]
[1746358612647,5.67707569,1835.9,1835.7,1.53945458]
[1746358613052,5.67707569,1835.9,1835.6,0.89454584]
[1746358613252,5.67707569,1835.9,1835.7,14.5]
[1746358613455,5.44721647,1835.8,1835.7,14.5]
[1746358613755,0.22980952,1835.8,1835.7,14.5]
[1746358613955,0.22980952,1835.8,1835.7,20.74541321]
[1746358614132,3.0,1836.3,1835.9,5.44674438]
[1746358614324,0.20781533,1836.2,1836.0,0.8128]
[1746358615031,0.20781533,1836.2,1836.1,14.5]
[1746358615434,5.44560867,1836.4,1836.1,14.5]
[1746358615635,0.20841334,1836.3,1836.1,16.57593366]
[1746358616841,5.65416616,1836.3,1836.1,16.57593366]
[1746358617046,5.44575282,1836.3,1836.1,16.57593366]
[1746358617256,0.20804285,1836.2,1836.1,16.57593366]
[1746358617852,5.44575436,1836.3,1836.1,16.57593366]
[1746358618036,5.44575436,1836.3,1836.2,1.65759337]
[1746358618238,5.44561392,1836.4,1836.2,1.65759337]
[1746358618445,5.44561392,1836.4,1836.0,6.25934479]
[1746358618758,5.44561392,1836.4,1836.1,14.5]
[1746358620059,5.44543672,1836.4,1836.1,14.5]
[1746358621059,8.55838182,1836.5,1836.1,19.94630081]
[1746358621244,0.1131,1836.5,1836.1,14.5]
[1746358621449,14.00386159,1836.5,1836.2,1.45]
[1746358621954,5.44552508,1836.4,1836.0,6.2592295]
[1746358622163,5.44577988,1836.3,1836.1,14.5]
[1746358622362,8.55838401,1836.5,1836.1,14.5]
[1746358622561,5.44564723,1836.4,1836.1,14.5]
[1746358622872,5.44564723,1836.4,1836.1,16.03128]
[1746358623840,0.1131,1836.5,1836.1,21.47742428]
[1746358624045,7.5369057,1836.6,1836.2,0.8225]
[1746358624246,5.44516796,1836.5,1836.2,0.8225]
[1746358624680,5.44516796,1836.5,1836.3,14.5]
[1746358625764,10.53682178,1836.6,1836.3,14.5]
[1746358625965,10.53682178,1836.6,1836.3,16.03225]
[1746358627058,5.44524812,1836.5,1836.3,16.03225]
[1746358629491,0.1924061,1836.4,1836.3,16.03225]
[1746358630604,10.89115939,1836.4,1836.1,1.53128]
[1746358630763,5.44584756,1836.3,1836.0,0.8285]
[1746358630964,0.19173015,1836.2,1836.0,0.8285]
[1746358631164,0.19173015,1836.2,1836.1,14.5]
[1746358632395,0.19202429,1836.2,1836.1,14.5]
[1746358635309,5.55873005,1836.4,1836.1,14.5]
[1746358635475,0.19202429,1836.2,1836.1,14.5]
[1746358635899,5.63805413,1836.2,1836.1,14.5]
[1746358637493,9.85954334,1836.2,1836.1,14.5]
[1746358637878,9.85954334,1836.2,1835.6,10.7571753]
[1746358637879,5.44684874,1836.0,1835.6,10.7571753]
[1746358638083,5.63679315,1835.9,1835.6,5.3095]
[1746358638275,0.18976107,1835.9,1835.8,3.64727654]
[1746358638470,5.44652038,1836.1,1835.8,18.51200419]
[1746358638775,0.18998458,1836.0,1835.8,19.27650419]
[1746358641786,14.00557359,1836.2,1835.8,19.27650419]
[1746358642072,14.00557359,1836.2,1835.8,15.62922765]
[1746358642073,0.18951645,1835.9,1835.8,15.62922765]
[1746358642610,5.446347,1836.1,1835.8,15.62922765]
[1746358642809,0.18951645,1835.9,1835.8,15.62922765]
[1746358643017,5.446347,1836.1,1835.8,15.62922765]
[1746358643216,0.18951645,1835.9,1835.8,15.62922765]
[1746358643423,5.446347,1836.1,1835.8,15.62922765]
[1746358643603,8.55929368,1836.2,1835.8,15.62922765]
[1746358643604,0.18951645,1835.9,1835.8,14.5]
[1746358643808,5.56001976,1835.9,1835.8,14.5]
[1746358644298,5.74953621,1835.9,1835.8,14.5]
[1746358646534,5.63643621,1835.9,1835.8,14.5]
[1746358648324,5.44721647,1835.8,1835.7,3.64727654]
[1746358648629,5.63639477,1835.8,1835.7,3.64727654]
[1746358648837,5.63639477,1835.8,1835.6,3.64727654]
[1746358649830,0.1891783,1835.8,1835.7,14.5]
[1746358650213,10.89427038,1835.9,1835.7,14.5]
[1746358650396,5.63639477,1835.8,1835.7,14.5]
[1746358653926,5.63639477,1835.8,1835.4,4.43377654]
[1746358653927,5.44782843,1835.6,1835.4,4.43377654]
[1746358654130,0.18682645,1835.5,1835.4,4.43377654]
[1746358654317,0.18682645,1835.5,1835.4,18.93377654]
[1746358655147,5.44764926,1835.7,1835.4,18.93377654]
[1746358655331,0.18563646,1835.6,1835.4,18.93377654]
[1746358655737,0.18563646,1835.6,1835.4,21.37202003]
[1746358656513,0.18563646,1835.6,1835.4,17.72474349]
[1746358660245,0.18563646,1835.6,1835.4,15.2865]
[1746358666074,5.56044342,1835.8,1835.4,20.73480307]
[1746358666274,5.4470323,1835.9,1835.5,5.44800797]
[1746358666575,5.44676672,1836.0,1835.6,6.20470998]
[1746358666751,0.18591033,1835.9,1835.6,6.20470998]
[1746358667074,0.18591033,1835.9,1835.7,14.5]
[1746358667444,5.63293173,1835.9,1835.7,14.5]
[1746358667643,5.44721647,1835.8,1835.7,14.5]
[1746358668075,5.63278865,1835.8,1835.7,14.5]
[1746358669984,0.18557218,1835.8,1835.7,14.5]
[1746358670142,5.44676762,1836.0,1835.7,14.5]
[1746358670344,0.18617058,1835.9,1835.7,14.5]
[1746358671478,0.18617058,1835.9,1835.7,15.2569]
[1746358671775,0.18617058,1835.9,1835.7,21.94209083]
[1746358671976,2.09318092,1836.1,1835.8,6.20411647]
[1746358672272,0.18662334,1836.0,1835.9,6.25828671]
[1746358672589,5.44573337,1836.3,1835.9,6.25828671]
[1746358672756,0.1877848,1836.2,1835.9,7.42881544]
[1746358674572,0.1877848,1836.2,1835.9,7.37434849]
[1746358675166,0.1877848,1836.2,1835.9,7.42880961]
[1746358675476,0.1877848,1836.2,1835.9,12.87551909]
[1746358675676,0.1877848,1836.2,1836.0,5.44656529]
[1746358675876,8.4456335,1836.4,1836.0,6.18396469]
[1746358676083,10.11139167,1836.5,1836.0,6.18396469]
[1746358676084,0.18744676,1836.1,1836.0,6.18396469]
[1746358676246,5.44538401,1836.5,1836.1,5.44616113]
[1746358676580,5.44543932,1836.4,1836.1,0.7707]
[1746358677079,5.44543932,1836.4,1836.2,14.5]
[1746358677594,5.44538401,1836.5,1836.2,14.5]
[1746358677772,5.44548717,1836.4,1836.2,14.5]
[1746358678996,5.44573326,1836.3,1836.2,14.5]
[1746358682249,5.44573326,1836.3,1836.0,3.64727654]
[1746358682784,5.44573326,1836.3,1836.1,14.5]
[1746358687083,5.44573326,1836.3,1835.9,9.86466604]
[1746358687689,5.44573326,1836.3,1836.0,14.5]
[1746358688321,5.44608385,1836.2,1836.0,14.5]
[1746358688500,5.44632645,1836.1,1836.0,14.5]
[1746358689171,5.44632645,1836.1,1835.9,3.64727654]
[1746358689512,0.17159277,1836.0,1835.9,3.64727654]
[1746358691406,5.44619717,1836.2,1835.8,6.2003136]
[1746358691593,0.17121475,1836.1,1835.8,7.20412789]
[1746358691784,0.17121475,1836.1,1835.8,7.25859345]
[1746358691984,0.17121475,1836.1,1835.9,14.5]
[1746358692975,5.61755573,1836.1,1835.9,14.5]
[1746358693175,0.17121475,1836.1,1835.9,14.5]
[1746358695278,5.61756148,1836.1,1835.9,14.5]
[1746358695485,5.44662309,1836.0,1835.9,14.5]
[1746358695719,5.44662309,1836.0,1835.7,3.64727654]
[1746358695720,5.44714809,1835.9,1835.7,3.64727654]
[1746358696186,0.16872706,1835.8,1835.7,3.64727654]
[1746358696387,5.44714809,1835.9,1835.7,3.64727654]
[1746358696588,5.44714809,1835.9,1835.8,14.5]
[1746358697305,5.55973221,1836.0,1835.8,14.5]
[1746358697509,5.44663221,1836.0,1835.8,14.5]
[1746358698313,5.44691976,1835.9,1835.8,14.5]
[1746358698512,5.44721647,1835.8,1835.7,3.64727654]
[1746358698885,5.44721647,1835.8,1835.5,3.64727654]
[1746358699181,5.44721647,1835.8,1835.6,14.5]
[1746358704314,0.16688319,1835.7,1835.6,14.5]
[1746358705320,5.6143964,1835.7,1835.6,14.5]
[1746358706886,0.16688319,1835.7,1835.6,14.5]
[1746358707286,5.44751321,1835.7,1835.6,14.5]
[1746358707486,5.61399453,1835.7,1835.6,14.5]
[1746358710007,11.06179065,1835.7,1835.4,3.64727654]
[1746358710523,5.61399453,1835.7,1835.5,14.5]
[1746358710728,11.06176672,1835.7,1835.5,14.5]
[1746358711027,5.44780998,1835.6,1835.5,14.5]
[1746358711199,5.6139263,1835.6,1835.5,14.5]
[1746358712430,0.16611632,1835.6,1835.5,14.5]
[1746358712925,5.6139263,1835.6,1835.5,14.5]
[1746358717735,5.6139263,1835.6,1835.3,3.64727654]
[1746358718234,5.6139263,1835.6,1835.4,14.5]
[1746358718535,5.61408925,1835.6,1835.4,14.5]
[1746358719342,0.16611632,1835.6,1835.4,16.31472765]
[1746358721141,5.61395415,1835.6,1835.4,16.31472765]
[1746358722646,0.16611632,1835.6,1835.4,16.31472765]
[1746358723237,5.61393307,1835.6,1835.4,16.31472765]
[1746358726544,5.61393307,1835.6,1835.4,1.81472765]
[1746358726752,5.61393307,1835.6,1835.2,9.906549]
[1746358726911,5.61393307,1835.6,1835.5,14.5]
[1746358730038,5.61393307,1835.6,1835.3,3.64727654]
[1746358730539,5.61393307,1835.6,1835.4,14.5]
[1746358733056,0.16611632,1835.6,1835.4,14.5]
[1746358733257,0.16611632,1835.6,1835.4,16.31472765]
[1746358733637,5.61392785,1835.6,1835.4,16.31472765]
[1746358733859,5.61392785,1835.6,1835.4,17.14202765]
[1746358735026,0.16611632,1835.6,1835.4,17.14202765]
[1746358737070,0.16611632,1835.6,1835.4,20.78930419]
[1746358737371,0.16611632,1835.6,1835.4,18.97457654]
[1746358739568,5.61394182,1835.6,1835.4,18.97457654]
[1746358740449,0.16611632,1835.6,1835.4,18.97457654]
[1746358743377,0.16611632,1835.6,1835.5,6.56938109]
[1746358743978,0.16611632,1835.6,1835.5,21.06938109]
[1746358747688,0.16611632,1835.6,1835.5,17.42210455]
[1746358748284,5.6139263,1835.6,1835.5,17.42210455]
[1746358752782,5.6139263,1835.6,1835.5,2.92210455]
[1746358752783,5.7270263,1835.6,1835.5,2.92210455]
[1746358752974,6.83317132,1835.6,1835.5,2.92210455]
[1746358753173,7.24819739,1835.6,1835.5,2.92210455]
[1746358755387,9.14205237,1835.6,1835.5,2.92210455]
[1746358756181,5.44831458,1835.5,1835.2,17.42210455]
[1746358756386,0.16422016,1835.4,1835.2,17.42210455]
[1746358757505,5.61272899,1835.4,1835.2,17.42210455]
[1746358757809,5.20042782,1835.3,1835.2,17.42210455]
[1746358757977,5.36365814,1835.3,1835.2,17.42210455]
[1746358760302,5.36365814,1835.3,1835.2,14.5]
[1746358761188,5.1674223,1835.3,1835.2,14.5]
[1746358763479,8.1674223,1835.3,1835.2,14.5]
[1746358763681,5.44944977,1835.1,1834.9,4.74863742]
[1746358763880,5.44959128,1835.0,1834.9,4.74863742]
[1746358764185,0.15952824,1835.0,1834.9,4.74863742]
[1746358764773,5.60911952,1835.0,1834.9,4.74863742]
[1746358765180,5.60911952,1835.0,1834.7,19.24863742]
[1746358765381,5.60911952,1835.0,1834.8,1.45]
[1746358766221,8.44988827,1834.9,1834.6,3.88503127]
[1746358766511,8.45048236,1834.7,1834.6,3.88503127]
[1746358766907,3.15355256,1834.7,1834.6,3.88503127]
[1746358767294,0.15355256,1834.7,1834.6,3.88503127]
[1746358767496,5.45021545,1834.8,1834.6,3.88503127]
[1746358767703,0.15355256,1834.7,1834.6,3.88503127]
[1746358768913,8.45004633,1834.9,1834.6,3.88503127]
[1746358769088,0.15236366,1834.7,1834.6,3.88503127]
[1746358769292,5.45048236,1834.7,1834.6,3.88503127]
[1746358769616,5.60261587,1834.7,1834.6,3.88503127]
[1746358769920,5.60261587,1834.7,1834.6,18.38503127]
[1746358770424,5.60261587,1834.7,1834.6,14.5]
[1746358771696,0.15213351,1834.7,1834.6,14.5]
[1746358772021,0.15213351,1834.7,1834.6,15.95]
[1746358772227,5.45018833,1834.8,1834.6,15.95]
[1746358772430,0.15213351,1834.7,1834.6,14.5]
[1746358772822,5.45001131,1834.9,1834.6,14.5]
[1746358773113,0.15213351,1834.7,1834.6,15.3094]
[1746358773316,1.7931901,1835.0,1834.6,15.3094]
[1746358773317,7.12985745,1835.0,1834.6,15.3094]
[1746358773520,0.15219865,1834.7,1834.6,20.76017946]
[1746358773716,1.6800901,1835.0,1834.6,23.38105947]
[1746358773917,0.1355247,1834.7,1834.6,23.38105947]
[1746358774121,1.6800901,1835.0,1834.6,23.38105947]
[1746358774320,7.12982486,1835.0,1834.6,23.38105947]
[1746358774508,0.13603359,1834.9,1834.6,23.38105947]
[1746358774708,0.13603359,1834.9,1834.7,2.33810595]
[1746358775102,0.13603359,1834.9,1834.6,6.31445767]
[1746358775429,0.13603359,1834.9,1834.7,14.5]
[1746358777742,0.13603359,1834.9,1834.7,19.95044847]
[1746358777942,0.13603359,1834.9,1834.8,6.2595853]
[1746358778342,0.41651876,1835.1,1834.8,6.2595853]
[1746358778541,0.13679066,1834.9,1834.8,6.2595853]
[1746358778752,8.44904365,1835.2,1834.8,8.88058841]
[1746358778913,0.13672553,1834.9,1834.8,6.2595853]
[1746358779117,8.44904365,1835.2,1834.8,6.2595853]
[1746358779118,0.41909582,1835.1,1834.8,6.2595853]
[1746358779350,0.13685579,1834.9,1834.8,6.2595853]